bitfinex/quotes_BTCUSD_20230831
["timestamp","ask_amount","ask_price","bid_price","bid_amount"]
[1693515216267,0.02,26076.0,26075.0,0.575261]
[1693515216528,0.04,26076.0,26075.0,0.575261]
[1693515217611,0.042,26076.0,26075.0,0.576261]
[1693515217742,0.063,26076.0,26075.0,0.578261]
[1693515220417,0.063,26076.0,26075.0,0.62015432]
[1693515221388,0.063,26076.0,26075.0,1.77068032]
[1693515222171,0.043,26076.0,26075.0,1.77068032]
[1693515222372,0.063,26076.0,26075.0,1.77068032]
[1693515222711,0.043,26076.0,26075.0,2.09646785]
[1693515223301,0.023,26076.0,26075.0,2.09646785]
[1693515223531,0.02,26077.0,26075.0,2.09346785]
[1693515223781,0.02,26077.0,26076.0,0.52458085]
[1693515223987,0.02,26077.0,26076.0,2.28215256]
[1693515225425,0.02,26077.0,26076.0,1.150482]
[1693515225625,0.02,26077.0,26076.0,1.725723]
[1693515225971,0.27921821,26077.0,26076.0,1.188482]
[1693515226125,0.28021821,26077.0,26076.0,1.184482]
[1693515226328,0.28021821,26077.0,26076.0,0.647241]
[1693515226529,0.28021821,26077.0,26076.0,0.072]
[1693515227364,0.081,26077.0,26076.0,0.072]
[1693515227929,0.37194612,26077.0,26076.0,0.072]
[1693515228292,0.37194612,26077.0,26076.0,0.038]
[1693515228293,0.732079,26077.0,26076.0,0.038]
[1693515228498,0.732079,26077.0,26076.0,0.041]
[1693515228499,0.751419,26077.0,26076.0,0.041]
[1693515228723,0.751059,26077.0,26076.0,0.003]
[1693515228940,0.751059,26077.0,26076.0,0.006]
[1693515228941,1.70137885,26077.0,26076.0,0.006]
[1693515229142,1.70137885,26077.0,26076.0,0.003]
[1693515229143,1.67975885,26077.0,26076.0,0.003]
[1693515229344,0.02,26072.0,26071.0,1.150674]
[1693515229548,0.02,26072.0,26070.0,0.851167]
[1693515229549,0.02,26071.0,26070.0,0.575367]
[1693515229753,0.02,26070.0,26069.0,0.66487859]
[1693515229959,0.16707234,26070.0,26069.0,1.24027459]
[1693515230164,0.02,26070.0,26069.0,1.24027459]
[1693515230980,0.02,26070.0,26069.0,1.150778]
[1693515232013,0.02,26070.0,26069.0,1.19195756]
[1693515232221,0.02,26070.0,26069.0,1.21295756]
[1693515232842,0.02,26070.0,26069.0,1.19995756]
[1693515233012,0.02,26070.0,26069.0,1.19195756]
[1693515233212,0.02,26070.0,26069.0,1.19295756]
[1693515233435,0.02,26070.0,26069.0,1.19195756]
[1693515233815,0.024,26070.0,26069.0,1.19195756]
[1693515234613,0.028,26070.0,26069.0,1.76735356]
[1693515235172,0.024,26070.0,26069.0,1.76735356]
[1693515235378,0.028,26070.0,26069.0,1.76735356]
[1693515235759,0.024,26070.0,26069.0,2.25075485]
[1693515235962,0.024,26070.0,26069.0,2.25175485]
[1693515236286,0.024,26070.0,26069.0,2.25875485]
[1693515236287,0.02,26070.0,26069.0,2.25875485]
[1693515236505,0.02,26070.0,26069.0,2.57175485]
[1693515236690,0.02,26072.0,26069.0,2.97375485]
[1693515237022,0.02,26075.0,26069.0,2.97375485]
[1693515237023,0.02,26071.0,26070.0,0.36768085]
[1693515237185,0.02,26072.0,26071.0,0.1569]
[1693515237343,0.02,26072.0,26071.0,1.09993185]
[1693515237548,0.02,26072.0,26071.0,2.25063385]
[1693515237747,0.02,26069.0,26066.0,0.01158663]
[1693515237949,0.02,26069.0,26063.0,0.08229162]
[1693515237950,0.74,26064.0,26063.0,0.08229162]
[1693515238168,0.74,26064.0,26058.0,0.0025]
[1693515238169,0.18,26059.0,26058.0,0.0025]
[1693515238367,2.15228519,26059.0,26058.0,0.0025]
[1693515238578,0.61475319,26059.0,26058.0,0.0025]
[1693515238842,0.02,26056.0,26055.0,0.575686]
[1693515239049,0.02,26056.0,26053.0,0.575735]
[1693515239050,0.02,26054.0,26053.0,0.575735]
[1693515239250,0.02,26054.0,26051.0,1.308462]
[1693515239251,0.02,26053.0,26051.0,1.308462]
[1693515239460,0.02,26053.0,26051.0,1.141559]
[1693515239673,0.02,26053.0,26052.0,0.11540004]
[1693515241302,0.02,26051.0,26050.0,1.0015]
[1693515241867,0.02,26052.0,26050.0,1.0015]
[1693515242075,0.0912484,26062.0,26058.0,0.08]
[1693515242363,0.29374522,26067.0,26061.0,0.1569]
[1693515242364,0.02,26066.0,26061.0,0.1569]
[1693515242601,0.02,26066.0,26065.0,0.1569]
[1693515243011,0.02,26066.0,26065.0,0.58006516]
[1693515243373,0.2107343,26066.0,26065.0,0.58006516]
[1693515243595,0.02,26066.0,26065.0,0.58006516]
[1693515243739,0.02,26066.0,26065.0,1.15554916]
[1693515244171,0.1758,26068.0,26065.0,2.30651716]
[1693515244386,0.04,26069.0,26067.0,0.1569]
[1693515244387,0.02,26069.0,26067.0,0.1569]
[1693515244585,0.02,26069.0,26067.0,0.732318]
[1693515244999,0.38768085,26069.0,26068.0,0.09279969]
[1693515245224,0.02,26069.0,26068.0,0.12081471]
[1693515245629,0.021,26069.0,26068.0,0.12081471]
[1693515246035,0.02,26069.0,26068.0,0.12081471]
[1693515246538,0.021,26069.0,26068.0,0.14281471]
[1693515247267,0.015,26069.0,26068.0,0.14281471]
[1693515247512,0.001,26069.0,26068.0,0.022]
[1693515247824,0.001,26069.0,26068.0,0.7190454]
[1693515248018,0.015,26069.0,26068.0,0.7190454]
[1693515248223,0.001,26069.0,26068.0,1.17040261]
[1693515248431,0.001,26069.0,26068.0,1.74582061]
[1693515248774,0.001,26069.0,26068.0,0.69132442]
[1693515248987,0.001,26069.0,26068.0,0.61298461]
[1693515249197,0.001,26069.0,26068.0,0.73701349]
[1693515249419,0.001,26069.0,26068.0,0.61298461]
[1693515249622,0.001,26069.0,26068.0,1.18840261]
[1693515249958,0.001,26069.0,26068.0,1.28512773]
[1693515250359,0.001,26069.0,26068.0,0.13429173]
[1693515251522,0.001,26069.0,26068.0,0.70970973]
[1693515251748,0.001,26069.0,26068.0,0.13429173]
[1693515253620,0.001,26069.0,26068.0,1.34530261]
[1693515257065,0.001,26069.0,26068.0,2.22672061]
[1693515257269,0.001,26069.0,26068.0,3.13640146]
[1693515257474,0.001,26069.0,26068.0,3.17467446]
[1693515257679,0.001,26069.0,26068.0,5.32487446]
[1693515258098,0.001,26069.0,26068.0,5.30687446]
[1693515258301,0.001,26069.0,26068.0,5.62094571]
[1693515258506,0.014,26076.0,26071.0,0.006]
[1693515258711,0.014,26076.0,26074.0,0.1569]
[1693515258919,0.014,26076.0,26074.0,0.732177]
[1693515259947,0.014,26076.0,26074.0,0.761177]
[1693515260364,0.1912484,26080.0,26079.0,0.006]
[1693515260569,0.1,26080.0,26079.0,1.52403085]
[1693515260781,0.22812101,26084.0,26080.0,0.006]
[1693515260986,0.0912484,26084.0,26082.0,0.1569]
[1693515261189,0.0912484,26084.0,26083.0,0.575087]
[1693515262023,0.0912484,26084.0,26082.0,0.1569]
[1693515262024,0.22812101,26084.0,26082.0,0.1569]
[1693515262228,0.09118903,26083.0,26082.0,0.764006]
[1693515262430,0.22806164,26084.0,26082.0,0.764006]
[1693515262788,0.22806164,26084.0,26083.0,0.026]
[1693515262789,0.09118903,26084.0,26083.0,0.026]
[1693515263135,0.09118903,26084.0,26082.0,0.764006]
[1693515263491,0.09118903,26084.0,26082.0,0.732006]
[1693515263696,0.09118903,26084.0,26083.0,0.13535298]
[1693515263904,0.24206164,26085.0,26083.0,0.13535298]
[1693515264137,0.24206164,26085.0,26083.0,0.10335298]
[1693515264532,0.09118903,26084.0,26083.0,0.10335298]
[1693515265206,0.21650351,26084.0,26083.0,0.018]
[1693515265389,0.09118903,26084.0,26083.0,0.018]
[1693515265601,0.29459597,26084.0,26083.0,0.018]
[1693515266001,0.09118903,26084.0,26083.0,0.046]
[1693515266203,0.09118903,26084.0,26083.0,0.13447372]
[1693515266402,0.10518903,26085.0,26083.0,0.11647372]
[1693515266610,0.10518903,26085.0,26083.0,0.14847372]
[1693515267231,0.10518903,26085.0,26083.0,0.11647372]
[1693515267625,0.10518903,26085.0,26083.0,0.13447372]
[1693515268027,0.10518903,26085.0,26083.0,0.10647372]
[1693515268449,0.10518903,26085.0,26083.0,0.12047372]
[1693515268450,0.10018903,26085.0,26083.0,0.12047372]
[1693515269299,0.21510306,26084.0,26083.0,0.032]
[1693515270076,0.21510306,26084.0,26083.0,0.014]
[1693515270292,0.58278391,26084.0,26083.0,0.014]
[1693515270496,0.58278391,26084.0,26083.0,0.046]
[1693515270697,1.15784891,26084.0,26083.0,0.046]
[1693515271027,0.58278391,26084.0,26083.0,0.046]
[1693515271175,0.58278391,26084.0,26083.0,0.032]
[1693515271356,0.58278391,26084.0,26083.0,0.06]
[1693515272928,0.21510306,26084.0,26083.0,0.06]
[1693515276234,0.94274585,26084.0,26083.0,0.06]
[1693515276609,1.57181085,26084.0,26083.0,0.06]
[1693515277002,1.63907085,26084.0,26083.0,0.06]
[1693515277239,1.7733971,26084.0,26083.0,0.06]
[1693515277436,1.76535183,26084.0,26083.0,0.028]
[1693515277709,1.71757293,26084.0,26079.0,0.2677]
[1693515277933,1.97314527,26084.0,26078.0,1.150376]
[1693515278133,0.014,26082.0,26078.0,1.418276]
[1693515278319,0.16107234,26082.0,26078.0,1.418276]
[1693515278526,0.014,26082.0,26078.0,1.418276]
[1693515278728,0.014,26082.0,26079.0,0.1569]
[1693515278904,0.014,26082.0,26080.0,0.68436414]
[1693515279321,0.23067682,26082.0,26080.0,0.68436414]
[1693515279524,0.23067682,26082.0,26080.0,0.575153]
[1693515279525,0.23267682,26082.0,26080.0,0.575153]
[1693515279704,0.21862709,26081.0,26080.0,0.575153]
[1693515280105,0.21862709,26081.0,26078.0,0.843085]
[1693515280707,0.21862709,26081.0,26079.0,0.09397681]
[1693515280889,0.21862709,26081.0,26079.0,0.575169]
[1693515281949,0.21862709,26081.0,26080.0,0.006]
[1693515282352,0.21862709,26081.0,26079.0,0.002]
[1693515282751,0.21862709,26081.0,26079.0,0.006]
[1693515284032,0.21862709,26081.0,26080.0,0.002]
[1693515284292,0.21862709,26081.0,26079.0,0.006]
[1693515284942,0.21862709,26081.0,26078.0,1.418274]
[1693515285140,0.21862709,26081.0,26080.0,0.006]
[1693515285677,0.21862709,26081.0,26079.0,0.002]
[1693515285901,0.21862709,26081.0,26079.0,0.006]
[1693515286237,0.21862709,26081.0,26078.0,1.418274]
[1693515286756,0.014,26082.0,26080.0,0.006]
[1693515286969,0.014,26082.0,26081.0,0.575131]
[1693515287117,0.014,26082.0,26081.0,1.150262]
[1693515287567,0.014,26082.0,26081.0,0.575131]
[1693515288181,0.10515775,26082.0,26080.0,1.307175]
[1693515288407,0.17410686,26081.0,26080.0,1.307175]
[1693515289601,0.24403036,26082.0,26080.0,0.738033]
[1693515289802,0.10515775,26082.0,26080.0,0.738033]
[1693515290002,0.10515775,26082.0,26080.0,0.82888895]
[1693515290560,0.24203036,26082.0,26080.0,0.82888895]
[1693515290761,0.24203036,26082.0,26080.0,0.732033]
[1693515290965,0.24203036,26082.0,26080.0,0.747033]
[1693515291256,0.24203036,26082.0,26080.0,0.766033]
[1693515291431,0.24203036,26082.0,26080.0,0.751033]
[1693515291694,0.24203036,26082.0,26080.0,0.732033]
[1693515291868,0.09115775,26081.0,26080.0,0.740033]
[1693515292231,0.27207398,26081.0,26080.0,0.740033]
[1693515292776,0.31778884,26081.0,26080.0,0.008]
[1693515292927,0.22825052,26081.0,26080.0,0.002]
[1693515293329,0.22825052,26081.0,26080.0,1.309206]
[1693515293330,0.09137791,26081.0,26080.0,1.309206]
[1693515293579,0.24225052,26082.0,26081.0,0.10219328]
[1693515293783,0.22828012,26082.0,26081.0,1.150262]
[1693515293989,0.09140751,26085.0,26082.0,0.006]
[1693515294180,0.09140751,26085.0,26083.0,2.300348]
[1693515294381,0.22828012,26085.0,26084.0,0.27918882]
[1693515294572,0.22828012,26085.0,26084.0,2.00438382]
[1693515294573,0.09140751,26085.0,26084.0,2.00438382]
[1693515294750,0.22828012,26085.0,26084.0,2.00438382]
[1693515295389,0.23028012,26085.0,26084.0,2.00538382]
[1693515295618,0.13887261,26085.0,26084.0,2.00538382]
[1693515296358,0.13887261,26085.0,26084.0,1.30803]
[1693515296532,0.48008018,26085.0,26084.0,1.30803]
[1693515296753,0.34320757,26085.0,26084.0,1.30803]
[1693515296933,0.68262896,26085.0,26084.0,1.30803]
[1693515297128,0.68262896,26085.0,26084.0,1.15113]
[1693515297293,0.5239182,26085.0,26084.0,1.15113]
[1693515297491,0.5239182,26085.0,26084.0,1.23926813]
[1693515297492,0.3217047,26085.0,26084.0,1.23926813]
[1693515297678,0.52353071,26085.0,26084.0,1.23926813]
[1693515298078,0.52553071,26085.0,26084.0,1.24026813]
[1693515298336,0.14128457,26085.0,26084.0,1.890095]
[1693515298571,0.09554469,26085.0,26084.0,2.190095]
[1693515299038,0.09354469,26085.0,26084.0,2.30750857]
[1693515299268,0.09354469,26085.0,26084.0,2.189095]
[1693515299507,0.09354469,26085.0,26084.0,2.30772672]
[1693515299508,0.09554469,26085.0,26084.0,2.30772672]
[1693515299767,0.09554469,26085.0,26084.0,2.29304233]
[1693515299768,0.09054469,26085.0,26084.0,2.29304233]
[1693515300000,0.09054469,26085.0,26084.0,2.189095]
[1693515300227,0.09054469,26085.0,26084.0,2.188095]
[1693515300459,0.002,26085.0,26084.0,2.188095]
[1693515300685,0.13734068,26085.0,26084.0,2.30159309]
[1693515300883,0.13734068,26085.0,26084.0,2.207095]
[1693515301144,0.13734068,26085.0,26084.0,2.61177585]
[1693515301308,0.13734068,26085.0,26084.0,2.63104885]
[1693515301513,0.32046159,26086.0,26085.0,0.006]
[1693515301757,0.32046159,26086.0,26085.0,2.39880985]
[1693515302020,0.13734068,26087.0,26085.0,2.39880985]
[1693515302176,0.13734068,26087.0,26086.0,0.1569]
[1693515302392,0.18312091,26088.0,26087.0,2.299996]
[1693515302393,0.13734068,26088.0,26087.0,2.299996]
[1693515302601,0.41202205,26089.0,26088.0,1.312854]
[1693515302602,0.32046159,26089.0,26088.0,1.312854]
[1693515302801,0.32046159,26089.0,26088.0,2.71241185]
[1693515302999,0.24890114,26090.0,26089.0,1.155908]
[1693515303000,0.15748588,26090.0,26089.0,1.155908]
[1693515303248,0.15748588,26090.0,26089.0,2.030862]
[1693515303655,0.34079309,26090.0,26089.0,2.030862]
[1693515303839,0.15748588,26090.0,26089.0,2.030862]
[1693515304044,0.15748588,26090.0,26089.0,2.068862]
[1693515304470,0.15748588,26090.0,26089.0,2.43654285]
[1693515304826,0.15748588,26090.0,26089.0,2.57956521]
[1693515305037,0.15748588,26090.0,26089.0,2.61656521]
[1693515305235,0.02,26090.0,26089.0,2.47354285]
[1693515305531,0.15748588,26090.0,26089.0,2.47354285]
[1693515305766,0.15748588,26090.0,26089.0,2.51054285]
[1693515305969,0.02,26090.0,26089.0,2.51054285]
[1693515306410,0.02,26090.0,26089.0,3.01581585]
[1693515306837,0.02,26090.0,26089.0,2.8668025]
[1693515307106,0.02,26090.0,26089.0,2.20744565]
[1693515308001,0.02,26090.0,26089.0,2.104862]
[1693515308428,0.02,26090.0,26089.0,2.47254285]
[1693515309833,0.02,26090.0,26089.0,2.58308313]
[1693515310039,0.02,26090.0,26089.0,2.47254285]
[1693515310636,0.02,26090.0,26089.0,2.61002885]
[1693515313102,0.02,26090.0,26089.0,2.70322092]
[1693515313259,0.02,26090.0,26089.0,2.56573492]
[1693515314784,0.02,26090.0,26089.0,2.19805407]
[1693515317307,0.02,26090.0,26089.0,2.31565407]
[1693515317510,0.23739945,26090.0,26089.0,1.223908]
[1693515317711,0.32883974,26090.0,26089.0,0.074]
[1693515317911,0.38855989,26090.0,26089.0,0.074]
[1693515318111,0.34274555,26090.0,26089.0,0.074]
[1693515318315,0.47990599,26090.0,26089.0,0.074]
[1693515318739,0.1253461,26090.0,26089.0,0.648954]
[1693515318919,0.1453461,26090.0,26089.0,0.80325285]
[1693515319336,0.1533461,26090.0,26089.0,0.80325285]
[1693515319561,0.1503461,26090.0,26089.0,0.80325285]
[1693515319776,0.1453461,26090.0,26089.0,0.80325285]
[1693515320118,0.1453461,26090.0,26089.0,0.82325285]
[1693515320537,0.1453461,26090.0,26088.0,1.149928]
[1693515320538,0.054,26085.0,26084.0,0.03047723]
[1693515320795,0.054,26085.0,26078.0,0.01129457]
[1693515320796,0.014,26080.0,26078.0,0.01129457]
[1693515321076,0.014,26080.0,26072.0,0.3955]
[1693515321077,0.014,26074.0,26066.0,0.0085]
[1693515321254,0.014,26074.0,26066.0,0.577943]
[1693515321255,0.014,26070.0,26066.0,0.577943]
[1693515321470,0.14707234,26069.0,26066.0,1.153405]
[1693515321675,0.14707234,26069.0,26068.0,0.1436]
[1693515321879,0.14707234,26069.0,26068.0,1.869854]
[1693515322085,0.16352436,26073.0,26070.0,0.006]
[1693515322288,0.16352436,26073.0,26071.0,0.575351]
[1693515322494,0.17752436,26073.0,26071.0,0.575351]
[1693515323966,0.43219708,26073.0,26071.0,0.575351]
[1693515324376,0.43219708,26073.0,26071.0,0.578351]
[1693515325316,0.17752436,26073.0,26072.0,0.01265951]
[1693515325522,0.17752436,26073.0,26072.0,0.58798851]
[1693515325723,0.17752436,26073.0,26072.0,1.73864651]
[1693515325922,0.17752436,26073.0,26072.0,1.16331751]
[1693515326526,0.17752436,26073.0,26072.0,1.16631751]
[1693515326953,0.17752436,26073.0,26072.0,1.16331751]
[1693515327396,0.17752436,26073.0,26072.0,1.16631751]
[1693515328137,0.17752436,26073.0,26072.0,1.74164651]
[1693515328481,0.17752436,26073.0,26072.0,1.73864651]
[1693515328698,0.17852436,26073.0,26072.0,1.75464651]
[1693515329238,0.17752436,26073.0,26072.0,1.73864651]
[1693515329440,0.17952436,26073.0,26072.0,1.76764651]
[1693515329598,0.17952436,26073.0,26072.0,1.78064651]
[1693515329796,0.17952436,26073.0,26072.0,1.76764651]
[1693515330004,0.17852436,26073.0,26072.0,1.76464651]
[1693515330188,0.18052436,26073.0,26072.0,1.79364651]
[1693515331058,0.16652436,26073.0,26072.0,1.780987]
[1693515331260,0.16652436,26073.0,26072.0,1.938087]
[1693515331720,0.16452436,26073.0,26072.0,1.909087]
[1693515332204,0.16652436,26073.0,26072.0,1.938087]
[1693515332410,0.16552436,26073.0,26072.0,1.912087]
[1693515332614,0.17696037,26073.0,26072.0,1.9326727]
[1693515332751,0.16652436,26073.0,26072.0,1.8125727]
[1693515333197,0.16652436,26073.0,26072.0,1.7755727]
[1693515333465,0.16352436,26073.0,26072.0,1.7385727]
[1693515334369,0.17702321,26073.0,26072.0,1.7385727]
[1693515334545,0.17902321,26073.0,26072.0,1.7455727]
[1693515335237,0.17802321,26073.0,26072.0,1.7455727]
[1693515335446,0.17902321,26073.0,26072.0,1.7455727]
[1693515335893,0.18002321,26073.0,26072.0,1.7825727]
[1693515336079,0.49951027,26073.0,26072.0,1.194658]
[1693515336388,0.18002321,26073.0,26072.0,1.194658]
[1693515337111,1.36407004,26073.0,26072.0,0.074]
[1693515337536,0.78876304,26073.0,26072.0,0.074]
[1693515338116,0.78576304,26073.0,26070.0,0.575365]
[1693515338350,0.36768085,26072.0,26070.0,0.575365]
[1693515338954,0.30023594,26071.0,26070.0,0.565365]
[1693515339134,0.68191679,26071.0,26070.0,0.565365]
[1693515339306,0.68191679,26071.0,26068.0,0.575406]
[1693515339307,0.054,26069.0,26068.0,0.575406]
[1693515339507,0.014,26068.0,26067.0,1.150857]
[1693515341546,0.015,26068.0,26067.0,1.167857]
[1693515341760,0.016,26068.0,26067.0,1.180857]
[1693515342367,0.016,26068.0,26067.0,1.19331877]
[1693515342768,0.002,26068.0,26067.0,1.19331877]
[1693515343079,0.016,26068.0,26067.0,1.19331877]
[1693515345663,0.016,26068.0,26067.0,1.20284857]
[1693515346391,0.02881477,26068.0,26067.0,1.20284857]
[1693515347118,0.02881477,26068.0,26067.0,1.77828857]
[1693515348919,0.02881477,26068.0,26067.0,1.7658268]
[1693515349252,0.02881477,26068.0,26067.0,1.77921654]
[1693515349432,0.02881477,26068.0,26067.0,1.7658268]
[1693515349783,0.034,26078.0,26069.0,0.006]
[1693515350009,0.034,26078.0,26073.0,2.458284]
[1693515350010,0.014,26077.0,26073.0,2.458284]
[1693515351495,0.015,26077.0,26073.0,2.458284]
[1693515351680,0.015,26077.0,26074.0,0.0124654]
[1693515351821,0.014,26077.0,26075.0,1.725789]
[1693515352249,0.015,26077.0,26075.0,2.001189]
[1693515352425,0.015,26077.0,26076.0,0.37368085]
[1693515352426,0.001,26077.0,26076.0,0.37368085]
[1693515352623,0.054,26083.0,26078.0,0.006]
[1693515352854,0.014,26083.0,26080.0,0.1571]
[1693515353061,0.014,26083.0,26080.0,1.882544]
[1693515353062,0.054,26083.0,26080.0,1.882544]
[1693515353408,0.054,26083.0,26080.0,2.725792]
[1693515354383,0.054,26083.0,26081.0,0.01140354]
[1693515354535,0.054,26083.0,26082.0,1.150218]
[1693515354746,0.36449323,26083.0,26082.0,0.575109]
[1693515355918,0.36449323,26083.0,26082.0,0.584109]
[1693515356324,0.36449323,26083.0,26082.0,0.009]
[1693515357117,0.054,26083.0,26082.0,0.009]
[1693515357438,0.054,26083.0,26082.0,0.584109]
[1693515357639,0.054,26083.0,26082.0,0.594109]
[1693515358900,0.31654315,26083.0,26082.0,0.019]
[1693515360629,1.259311,26083.0,26082.0,0.019]
[1693515360838,0.684224,26083.0,26082.0,0.019]
[1693515361413,1.57185485,26083.0,26082.0,0.019]
[1693515361613,2.51315934,26083.0,26082.0,0.019]
[1693515361936,2.60189495,26083.0,26082.0,0.019]
[1693515362140,2.60297495,26083.0,26082.0,0.019]
[1693515362344,2.59319495,26083.0,26082.0,0.019]
[1693515362540,2.60075495,26083.0,26082.0,0.019]
[1693515362740,2.4546179,26083.0,26082.0,0.019]
[1693515363047,2.73174206,26083.0,26082.0,0.019]
[1693515363386,2.82570694,26083.0,26082.0,0.019]
[1693515363672,3.29410346,26083.0,26082.0,0.019]
[1693515363878,3.05128272,26083.0,26082.0,0.009]
[1693515364031,3.05116272,26083.0,26082.0,0.009]
[1693515364242,3.05026272,26083.0,26082.0,0.009]
[1693515364450,3.04402272,26083.0,26082.0,0.009]
[1693515364791,3.3162436,26083.0,26082.0,0.009]
[1693515365111,2.66261368,26083.0,26082.0,0.003]
[1693515365390,2.94007456,26083.0,26082.0,0.002]
[1693515365664,0.575155,26080.0,26077.0,0.2556]
[1693515365791,0.09139861,26078.0,26076.0,1.150482]
[1693515366001,0.014,26077.0,26076.0,1.420482]
[1693515366779,0.014,26077.0,26076.0,1.429482]
[1693515367318,0.014,26077.0,26076.0,0.864241]
[1693515367519,0.014,26077.0,26076.0,0.289]
[1693515367721,0.10539861,26077.0,26076.0,0.279]
[1693515368131,0.10539861,26077.0,26076.0,0.302]
[1693515368293,0.50025331,26077.0,26076.0,0.302]
[1693515368500,0.86793416,26077.0,26076.0,0.293]
[1693515368933,0.86793416,26077.0,26076.0,0.315]
[1693515369137,1.56095316,26077.0,26076.0,0.045]
[1693515369313,1.60095316,26077.0,26076.0,0.045]
[1693515369517,2.08477355,26077.0,26076.0,0.045]
[1693515369891,2.46232615,26077.0,26076.0,0.045]
[1693515370115,2.69082269,26077.0,26076.0,0.023]
[1693515370337,2.69082269,26077.0,26074.0,0.2535]
[1693515370338,0.014,26075.0,26074.0,0.2535]
[1693515370511,0.1054019,26075.0,26074.0,0.2535]
[1693515371191,0.47308275,26075.0,26074.0,0.2535]
[1693515371392,1.22544861,26075.0,26071.0,0.2601]
[1693515371594,0.014,26073.0,26071.0,0.2601]
[1693515372078,0.014,26073.0,26071.0,0.83545]
[1693515372310,0.66449179,26073.0,26071.0,0.2601]
[1693515372511,0.733257,26072.0,26071.0,0.022]
[1693515372843,0.733257,26072.0,26069.0,0.2696298]
[1693515373044,0.8246589,26072.0,26071.0,0.037]
[1693515373258,0.8246589,26072.0,26069.0,0.2696298]
[1693515373459,0.014,26070.0,26069.0,0.2696298]
[1693515375221,1.93129259,26070.0,26069.0,0.0095298]
[1693515375424,2.11537738,26070.0,26069.0,0.0095298]
[1693515375630,1.69122685,26070.0,26069.0,0.0095298]
[1693515375831,2.53986374,26070.0,26069.0,0.0095298]
[1693515376060,2.53165243,26070.0,26069.0,0.0095298]
[1693515376218,2.69337131,26070.0,26069.0,0.0095298]
[1693515376396,2.68833131,26070.0,26069.0,0.0095298]
[1693515376595,2.95112036,26070.0,26069.0,0.0095298]
[1693515376818,2.86238778,26070.0,26069.0,0.0095298]
[1693515377060,2.86490778,26070.0,26069.0,0.0095298]
[1693515377175,2.95649148,26070.0,26069.0,0.0095298]
[1693515377382,2.83401148,26070.0,26069.0,0.0095298]
[1693515377601,2.83827148,26070.0,26069.0,0.0095298]
[1693515377826,2.7016926,26070.0,26069.0,0.0095298]
[1693515378024,2.44220355,26070.0,26069.0,0.0095298]
[1693515378224,3.27936777,26070.0,26069.0,0.0095298]
[1693515378494,2.91871873,26070.0,26069.0,0.0095298]
[1693515378701,3.27170551,26070.0,26069.0,0.0095298]
[1693515378908,2.85046607,26070.0,26069.0,0.0095298]
[1693515379064,2.85154607,26070.0,26069.0,0.0095298]
[1693515379277,2.85100607,26070.0,26069.0,0.0095298]
[1693515379465,3.16822251,26070.0,26069.0,0.0095298]
[1693515379697,3.14057842,26070.0,26069.0,0.0095298]
[1693515379900,3.10701665,26070.0,26069.0,0.0095298]
[1693515380042,2.84896607,26070.0,26069.0,0.0095298]
[1693515380250,2.85316607,26070.0,26069.0,0.0095298]
[1693515380472,3.01270607,26070.0,26069.0,0.0095298]
[1693515380684,3.38577511,26070.0,26069.0,0.0095298]
[1693515380883,3.38757511,26070.0,26069.0,0.0095298]
[1693515381137,2.07325062,26070.0,26069.0,0.0095298]
[1693515381311,0.81516462,26070.0,26069.0,0.0095298]
[1693515381709,1.39053762,26070.0,26069.0,0.0095298]
[1693515382580,1.39053762,26070.0,26069.0,1.17225608]
[1693515382581,0.058,26070.0,26069.0,1.17225608]
[1693515382754,0.058,26070.0,26069.0,1.7357178]
[1693515383161,0.058,26070.0,26069.0,1.17043752]
[1693515384700,0.058,26070.0,26069.0,0.01964552]
[1693515385892,1.25091401,26070.0,26069.0,0.0095298]
[1693515386286,1.82628701,26070.0,26069.0,0.0095298]
[1693515386542,2.16708171,26070.0,26069.0,0.0095298]
[1693515386796,2.67793455,26070.0,26069.0,0.0095298]
[1693515386973,2.93102445,26070.0,26069.0,0.0095298]
[1693515387114,2.91938445,26070.0,26069.0,0.0095298]
[1693515387314,2.91302445,26070.0,26069.0,0.0095298]
[1693515387527,2.91152445,26070.0,26069.0,0.0095298]
[1693515387722,2.64686975,26070.0,26069.0,0.0095298]
[1693515387933,2.65190975,26070.0,26069.0,0.0095298]
[1693515388143,2.69303921,26070.0,26069.0,0.0095298]
[1693515388351,2.38873985,26070.0,26069.0,0.0095298]
[1693515388518,2.38885985,26070.0,26069.0,0.0095298]
[1693515388755,2.75688889,26070.0,26069.0,0.0095298]
[1693515388937,2.75838889,26070.0,26069.0,0.0095298]
[1693515389341,2.76750889,26070.0,26069.0,0.0095298]
[1693515389756,2.80021985,26070.0,26069.0,0.0095298]
[1693515389934,3.05151985,26070.0,26069.0,0.0095298]
[1693515390113,2.93801985,26070.0,26069.0,0.0095298]
[1693515390313,2.93813985,26070.0,26069.0,0.0095298]
[1693515390664,2.92441985,26070.0,26069.0,0.0095298]
[1693515390894,3.01892607,26070.0,26069.0,0.0105298]
[1693515391093,3.01916607,26070.0,26069.0,0.0105298]
[1693515391456,3.01656607,26070.0,26069.0,0.0095298]
[1693515391671,3.61289511,26070.0,26069.0,0.0095298]
[1693515391870,3.61289511,26070.0,26069.0,0.0125298]
[1693515391871,4.40016892,26070.0,26069.0,0.0125298]
[1693515392028,4.63076039,26070.0,26069.0,0.0125298]
[1693515392219,0.214,26063.0,26062.0,0.0115463]
[1693515392423,2.55253719,26063.0,26062.0,0.0115463]
[1693515392607,3.73066519,26063.0,26062.0,0.0115463]
[1693515392803,3.58713285,26063.0,26062.0,0.0115463]
[1693515393010,3.95486189,26063.0,26062.0,0.0115463]
[1693515393265,4.24334189,26063.0,26062.0,0.0115463]
[1693515393457,4.23350189,26063.0,26062.0,0.0115463]
[1693515393605,4.61178189,26063.0,26062.0,0.0145463]
[1693515393806,4.62286189,26063.0,26062.0,0.0145463]
[1693515394051,4.63678189,26063.0,26062.0,0.0175463]
[1693515394249,4.61806189,26063.0,26062.0,0.0175463]